Cogmind - Beta 16.1 @@@ ROGUE MODE // 2026.04.06 @ 18:53:33 Player: YA-B01 Result: Destroyed by 7N-WO0(R) with Subdweller Beam Cannon Performance ------------- Evolutions (0) 0 Regions Visited (2) 400 Robots Destroyed (29) 145 Value Destroyed (787) 787 Prototype IDs (2) 40 Alien Tech Used (0) 0 Bonus (0) 0 TOTAL SCORE: 1372 Bonus ------- None Cogmind --------- Core Integrity 0/250 Matter 300/300 Energy 100/100 System Corruption 3% Temperature Cool (9) Movement Rolling (125) Ox3 Location -10/Subcaves Parts ------- > --- POWER (1) -------- Subdweller Power Source > --- PROPULSION (2) --- Wheel Subdweller Monowheel > --- UTILITY (2) ------ Large Storage Unit Makeshift Kinetic Plating > --- WEAPON (2) ------- Subdweller Laser Makeshift Spear > --- INVENTORY (15) --- Subdweller Monowheel Scrap Shield Small Laser Subdweller Laser Subdweller Laser Subdweller Machine Gun Subdweller Machine Gun Subdweller Machine Gun Subdweller Machine Gun Makeshift Shrapnel Gun Light Cannon Battle Cannon Grenade Launcher Shrapnel Trap Peak State ------------ > --- POWER ------------ Subdweller Power Source > --- PROPULSION ------- Wheel Subdweller Monowheel > --- UTILITY ---------- Large Storage Unit Makeshift Kinetic Plating > --- WEAPON ----------- Subdweller Machine Gun Makeshift Shrapnel Gun > --- INVENTORY -------- Subdweller Power Source Subdweller Monowheel Scrap Shield Small Laser Subdweller Laser Subdweller Laser Subdweller Machine Gun Subdweller Machine Gun Subdweller Machine Gun Light Cannon Battle Cannon Grenade Launcher [Rating: 18] Favorites ----------- Power Light Ion Engine Engine Light Ion Engine Propulsion Light Treads Treads Light Treads Wheel Wheel Utility Large Storage Unit Device Seismic Detector Storage Large Storage Unit Protection Makeshift Kinetic Plating Weapon Assault Rifle Energy Gun EM Pulse Gun Ballistic Gun Assault Rifle Ballistic Cannon Light Cannon Piercing Weapon Makeshift Spear Build | -11 -10 -10 ------- Run | Yrd Mat Sub Slots Evolved . | . . . Power . | . . . Propulsion . | . . . Utility . | . . . Weapon . | . . . Parts Attached 22 | 6 3 13 Power 4 | 1 . 3 Engine 4 | 1 . 3 Core . | . . . Reactor . | . . . Propulsion 5 | 2 . 3 Treads 3 | 2 . 1 Leg . | . . . Wheel 2 | . . 2 Hover . | . . . Flight . | . . . Utility 5 | 1 2 2 Device 1 | . 1 . Storage 2 | 1 1 . Processor . | . . . Hackware . | . . . Protection 2 | . . 2 Artifact . | . . . Weapon 8 | 2 1 5 Energy Gun 3 | 1 1 1 Energy Cannon . | . . . Ballistic Gun 3 | 1 . 2 Ballistic Cannon 1 | . . 1 Launcher . | . . . Special Weapon . | . . . Impact Weapon . | . . . Slashing Weapon . | . . . Piercing Weapon 1 | . . 1 Special Melee Weapon . | . . . Unidentified Prototypes . | . . . Parts Lost 9 | . . 9 Power 2 | . . 2 Propulsion 3 | . . 3 Utility 2 | . . 2 Weapon 2 | . . 2 Highest Loss Streak 4 | . . 4 To Critical Strikes . | . . . Average Backups 7 | 1 5 9 Power . | . 1 . Propulsion 1 | . . 1 Utility . | . . . Weapon 5 | . 2 6 Tool/Special . | . . . Unused Backups 9 | . . 9 Power . | . . . Propulsion 1 | . . 1 Utility 1 | . . 1 Weapon 7 | . . 7 Tool/Special . | . . . Average Slot Usage (%) 92 | . 91 93 Engine 13 | . 14 12 Treads 13 | . 28 5 Wheel 11 | . . 17 Device 4 | . 6 2 Storage 14 | . 14 14 Protection 7 | . . 10 Energy Gun 6 | . 14 2 Ballistic Gun 18 | . 14 20 Ballistic Cannon 1 | . . 2 Peak Build Rating 18 | 6 7 18 Average Rating 11 | 5 6 14 On Entrance 4 | . 6 7 Avg Prop Armor Cover (%) 7 | . . 7 Naked Turns . | . . . Heaviest Build 38 | 11 32 38 Greatest Support 40 | 40 40 40 Greatest Overweight (x) 3 | . . 3 Average Overweight (x) 1 | . . 2 Largest Inventory Capacity 15 | 8 15 15 Average Capacity 13 | 7 11 15 Most Carried 15 | 3 6 15 Average Carried 8 | 1 5 10 Final Capacity 15 | 8 15 15 Final Carried 15 | 3 6 15 Class Distribution -------------------- 77% | Mutant 22% | Scavenger-Mutant Dominant Class ---------------- Mutant | -10/Materials Mutant | -10/Subcaves Resources | -11 -10 -10 ----------- Run | Yrd Mat Sub Matter Collected 960 | 287 189 484 Remotely . | . . . Salvage Created 1003 | 152 585 266 Parts 76 | 23 34 19 Haulers Intercepted 1 | . 1 . Recyclers Shooed . | . . . Parts Field Recycled . | . . . Retrieved Matter . | . . . Parts Self-Destructed 4 | . . 4 Prevented . | . . . Parts Restored . | . . . Kills | -11 -10 -10 ------- Run | Yrd Mat Sub Combat Hostiles Destroyed 17 | . 8 9 Guns 15 | . 7 8 Cannons 1 | . . 1 AOE 1 | . 1 . Classes Destroyed 8 | 2 4 2 Tunneler 6 | 5 1 . Hauler 1 | . 1 . Recycler 2 | 1 1 . Operator 1 | . 1 . Watcher 2 | . 2 . Grunt 8 | . 8 . Sentry 1 | . . 1 Subdweller 8 | . . 8 Best Kill Streak 5 | 5 3 1 Combat Bots Only 3 | . 3 1 Max Kills in Single Turn 1 | 1 1 1 Gunslinging . | . . . Exploded 1 | . 1 . Melee . | . . . Uniques/NPCs Destroyed . | . . . Combat | -11 -10 -10 -------- Run | Yrd Mat Sub Hostile Shots Fired 99 | . 42 57 Missed 27 | . 16 11 Hits 72 | . 26 46 Projectile 72 | . 26 46 Critical Strikes 4 | . . 4 Damage Taken 1394 | . 373 1021 Core 276 | . 25 251 Absorbed by Shields . | . . . Ignored by Resistances 26 | . . 26 Core Remaining (%) 100 | 100 . . Volleys Fired 117 | 9 50 58 Largest 2 | 2 2 2 Hottest 84 | 60 60 84 Shots Fired 220 | 18 100 102 Gun 192 | 18 100 74 Cannon 28 | . . 28 Launcher . | . . . Special . | . . . Kinetic 155 | 9 50 96 Thermal 11 | 9 . 2 Explosive . | . . . Electromagnetic 54 | . 50 4 Robot Hit Streak 19 | 11 11 19 Robot Miss Streak 2 | 1 2 1 Penetration Max . | . . . Secondary Targets . | . . . Shots Hit Robots 140 | 12 64 64 Core Hits 54 | 7 26 21 Critical Kills . | . . . Critical Parts Destroyed . | . . . Critical Strikes 2 | . 2 . Corrupt 2 | . 2 . Melee Attacks 3 | . . 3 Impact . | . . . Slashing . | . . . Piercing 3 | . . 3 Sneak Attacks . | . . . Combat Hostiles . | . . . Follow-up Attacks . | . . . Damage Inflicted 2304 | 148 1005 1151 Guns 2048 | 148 931 969 Cannons 182 | . . 182 Explosions 55 | . 55 . Melee . | . . . Ramming 19 | . 19 . Kinetic 1529 | 62 378 1089 Thermal 161 | 86 55 20 Explosive . | . . . Electromagnetic 595 | . 553 42 Impact . | . . . Slashing . | . . . Piercing . | . . . Highest Corruption 3 | . 3 3 Average Corruption 2 | . 2 3 Corruption Purged . | . . . Corruption Blocked . | . . . Effects 47 | . 12 35 Message Errors 10 | . 4 6 Matter Fused 13 | . 2 11 Heat Flow Errors 5 | . 3 2 Energy Discharges 5 | . 1 4 Data Loss (minor) 5 | . 2 3 Data Loss (major) 3 | . . 3 Misfires 5 | . . 5 Alerts 1 | . . 1 Overload Shots . | . . . Overflow Damage . | . . . Projectiles . | . . . Explosions . | . . . Melee . | . . . Knockbacks 6 | . . 6 Impact . | . . . Kinetic 6 | . . 6 Secondary . | . . . Self-Inflicted Damage 29 | . 29 . Shots 1 | . 1 . Rammed 5 | . 5 . Targets Rammed 6 | . 6 . Kicked . | . . . Crushed 1 | . 1 . Highest Temperature 362 | . 204 362 Average Temperature 77 | . 57 163 Received Heat Transfer 922 | . 183 739 Siege Activations . | . . . Martial Activations . | . . . Shielding Activations . | . . . Robots Disrupted . | . . . Combat Hostiles . | . . . Robots Corrupted . | . . . Combat Hostiles . | . . . Parts Fried 2 | . 2 . Impact Corruptions . | . . . Robots Melted . | . . . Combat Hostiles . | . . . Parts Melted . | . . . Heat Transferred 325 | 200 100 25 Parts Sabotaged . | . . . Parts Stolen . | . . . Parts Stripped . | . . . Power Chain Reactions 1 | . 1 . Alert | -11 -10 -10 ------- Run | Yrd Mat Sub Maximum Alert Level . | . . . Low Security (%) 100 | 100 100 . Level 1 . | . . . Level 2 . | . . . Level 3 . | . . . Level 4 . | . . . Level 5 . | . . . High Security . | . . . Max Security . | . . . Peak Influence 70 | 10 70 . Initial . | . . . Average 19 | 1 21 . Influence Increases 337 | 30 287 20 Destroy 0b10 Robot/C 180 | . 160 20 Destroy 0b10 Robot/NC 60 | 30 30 . Destroy Leader 56 | . 56 . Successful Hack 9 | . 9 . Disable Machine 30 | . 30 . Destroy Structure 2 | . 2 . Influence Decreases 337 | 30 281 26 Entered New Map 4 | . . 4 Time Decay 333 | 30 281 22 Squads Dispatched 4 | . 4 . Investigation 2 | . 2 . Extermination . | . . . Reinforcement 2 | . 2 . Assault . | . . . Garrison . | . . . Intercept . | . . . Searches Triggered . | . . . Construction Impeded . | . . . Haulers Reinforced . | . . . Active Scanning Responses . | . . . Cargo Convoy Interrupts . | . . . Stealth | -11 -10 -10 --------- Run | Yrd Mat Sub Distress Signals 2 | . 2 . Communications Jammed . | . . . Distress Signals . | . . . Times Spotted 27 | . 16 11 Peak Tracking Total 3 | . 3 2 Tactical Retreats . | . . . Traps | -11 -10 -10 ------- Run | Yrd Mat Sub Traps Triggered 6 | . 5 1 Indirectly . | . . . Trap Hack Attempts . | . . . Triggered . | . . . Disarmed . | . . . Reprogrammed . | . . . Reused . | . . . Traps Extracted . | . . . Installed . | . . . Triggered . | . . . Most Traps Carried 1 | . . 1 Machines | -11 -10 -10 ---------- Run | Yrd Mat Sub Machines Disabled 2 | . 2 . Max in Single Turn 2 | . 2 . Machines Repaired . | . . . Machines Dismantled . | . . . Machines Sabotaged . | . . . Overloaded Fab Kills . | . . . Hacking | -11 -10 -10 --------- Run | Yrd Mat Sub Machines Accessed 6 | . 6 . Terminals 4 | . 4 . Fabricators . | . . . Repair Stations . | . . . Recycling Units 2 | . 2 . Scanalyzers . | . . . Garrison Access . | . . . Total Hacks 15 | . 15 . Successful 7 | . 7 . Failed 8 | . 8 . Catastrophic 1 | . 1 . Database Lockouts . | . . . Manual 4 | . 4 . Terminals 10 | . 10 . Fabricators . | . . . Repair Stations . | . . . Recycling Units 5 | . 5 . Scanalyzers . | . . . Garrison Access . | . . . Terminal Hacks 3 | . 3 . Prototype ID Bank 1 | . 1 . Locate Traps 2 | . 2 . Fabricator Hacks . | . . . Repair Station Hacks . | . . . Recycling Unit Hacks 2 | . 2 . Retrieve Matter 1 | . 1 . Retrieve Components 1 | . 1 . Scanalyzer . | . . . Garrison Access Hacks . | . . . Unauthorized Hacks 2 | . 2 . Terminals 1 | . 1 . Skim 1 | . 1 . Fabricators . | . . . Repair Stations . | . . . Recycling Units 1 | . 1 . Reject 1 | . 1 . Scanalyzers . | . . . Garrison Access . | . . . Data Cores Recovered . | . . . Used . | . . . Hacking Detections 4 | . 4 . Full Trace Events . | . . . Feedback Events . | . . . Feedback Blocked . | . . . Robot Schematics Acquired . | . . . Robots Built . | . . . Authchips . | . . . Time . | . . . Total Robot Build Rating . | . . . Part Schematics Acquired . | . . . Parts Built . | . . . Authchips . | . . . Time . | . . . Total Part Build Rating . | . . . Part Studies Acquired . | . . . Parts Repaired . | . . . Time . | . . . Parts Recycled . | . . . Recycled Matter . | . . . Retrieved Matter . | . . . Retrieved Components 7 | . 7 . Parts Scanalyzed . | . . . Part Schematics Acquired . | . . . Parts Damaged . | . . . Bothacking | -11 -10 -10 ------------ Run | Yrd Mat Sub Used RIF Installer . | . . . Robots Hacked . | . . . Non-combat . | . . . Combat . | . . . Robot Hacks Applied . | . . . Relay Couplers Released . | . . . Fabnet Peak Effective % . | . . . Robots Rewired . | . . . Allies Hacked . | . . . Hacks Repelled . | . . . Allies | -11 -10 -10 -------- Run | Yrd Mat Sub Total Allies . | . . . Largest Group . | . . . Highest-Rated Group . | . . . Highest-Rated Ally . | . . . Total Orders . | . . . Ally Attacks . | . . . Total Damage . | . . . Kills . | . . . Allies Corrupted . | . . . Allies Melted . | . . . Intel | -11 -10 -10 ------- Run | Yrd Mat Sub Active Infowar (turns) 850 | . 437 413 Seismic 850 | . 437 413 Robot Analysis Total . | . . . Derelict Logs Recovered 2 | . . 2 Drone Launches . | . . . Drone Recoveries . | . . . Exploration | -11 -10 -10 ------------- Run | Yrd Mat Sub Turns Passed 3115 | 126 965 2024 Spaces Moved 1814 | 54 478 1282 Core 2 | 2 . . Treads 583 | 52 478 53 Legs . | . . . Wheels 1229 | . . 1229 Hover . | . . . Flight . | . . . Fastest Speed 50 | 50 160 107 Average Speed 133 | 155 160 122 Slowest Speed 240 | 160 160 240 Overloaded Moves . | . . . Propulsion Burnouts . | . . . Robots Hopped . | . . . Potential Cave-ins . | . . . Cave-ins Triggered . | . . . Exploration Rate (%) 53 | 4 86 70 Regions Visited 2 Branch Regions 1 Pre-discovered Areas 1 | . . 1 Known Exits Taken . | . . . Unknown Exits Taken 2 | 1 1 . Scrap Searched 6 | . . 6 Spaces Dug . | . . . Terrain Destroyed 2 | . 2 . Melee . | . . . Projectile . | . . . AOE 2 | . 2 . Terrain Rammed . | . . . Walls Destroyed . | . . . Machines Disabled . | . . . Actions | -11 -10 -10 --------- Run | Yrd Mat Sub Total 2274 | 75 575 1624 Wait 285 | 4 31 250 Move 1812 | 53 477 1282 Hop . | . . . Pick Up 24 | 3 5 16 Fast Attach 9 | 6 1 2 Attach 8 | . 1 7 Detach 1 | . 1 . Swap 6 | . 1 5 Drop 3 | . 2 1 Fire 117 | 9 50 58 Melee 3 | . . 3 Ram . | . . . Kick . | . . . Crush 6 | . 6 . Escape Stasis . | . . . Rewire . | . . . Trap . | . . . Miscellaneous . | . . . Route ------- -11/Scrapyard -10/Materials (discovered 6 exits: [*Mat x3] / [*Min x2] / [*Sub]) -10/Subcaves (discovered 1 exit: [*Mat]) History --------- Turn | Location | Event 7 | -11/Scrapyard | Discovered new exit (range 15) 127 | -11/Scrapyard | Entered Materials 312 | -10/Materials | Build established: Mutant 363 | -10/Materials | Discovered new exit (range 8) 443 | -10/Materials | Discovered new exit (range 14) 630 | -10/Materials | Discovered new exit (range 6) 756 | -10/Materials | Discovered new exit (range 7) 992 | -10/Materials | Discovered new exit (range 12) 1084 | -10/Materials | Discovered new exit (range 6) 1092 | -10/Materials | Entered Subcaves 1093 | -10/Subcaves | Approached by a straggling Scientist 1260 | -10/Subcaves | Lost 4 parts (1p2n1w) 1487 | -10/Subcaves | Disturbed a concealed Subdweller 1510 | -10/Subcaves | Core integrity fell below 50% 1856 | -10/Subcaves | Learned location of Zion (-7) 1885 | -10/Subcaves | Learned Materials terminal intel 1887 | -10/Subcaves | Core integrity fell below 20% 2098 | -10/Subcaves | Shifting Twisted Machinery released Unknown Ballistic Cannon 2098 | -10/Subcaves | Shifting Twisted Machinery released Sub. Machine Gun 2203 | -10/Subcaves | Discovered new exit (range 15) 2743 | -10/Subcaves | Build established: Scavenger-Mutant 2803 | -10/Subcaves | Disturbed a concealed Subdweller 3116 | -10/Subcaves | Destroyed by 7N-WO0(R) with Subdweller Beam Cannon Last Messages --------------- 02840_ Acquired Mak. Spear. 02841_ Searching scrap... 02841_ Found Sub. Monowheel. 02841_ Found 34 Matter. 02848_ Searching scrap... 02848_ Found Shrapnel Trap. 02848_ Found 41 Matter. 02849_ Dropped Broken Sub. Power Source. 02850_ Acquired Shrapnel Trap. 02869_ System corrupted: Component data lost. 02899_ System corrupted: Energy discharge (-25). 02901_ X7-5QI(u) builds Twisted Machinery. 02957_ Sub. Monowheel shoots sparks and powers down. 02966_ System corrupted: FCS attempts to trigger Sub. Laser. 02966_ System corrupted: Sub. Laser misfires. 03051_ System corrupted: Matter fused (-7). 03081_ Acquired 12 matter. 03091_ Acquired 5 matter. Map ----- +----------------------------------------------------+ | ?????????????????????????????????????????????????? | | ?????????????????????????????????????????????????? | | ?????????????????????????????????????????????????? | | ?????????????????????????????????????????????????? | | ?????????????????????????????????????????????????? | | ?????????????????????????????????????????????????? | | ?????????????????????????????????????????????????? | | ?????????????????????????????????????????????????? | | ?????????????????????????????????????????????????? | | ?????????????????????????????????????????????????? | | ?????????????????????????????????????????????????? | | #????????????????#####????????###????????######### | | ##???????????##### ###?????## ####?##### ## # | | ##??????????# ## ###??## ## ### "" | | #??????????# &#### " | | #????????### # # # #### & | | #???????## ### #### R###### # ##??#" ## | | ###????#### #?## ###### #????#####???#""### | | ??????## ##??#### #### ##???????????#"##?? | | #??#### ###?????## ## ###?????????###??? | | #?## ###??????## #??????????????? | | ### ##????????# ### #??????????????? | | ##????????# # #?## #??????????????? | | ##?????????## ## ##?## #??????????????? | | ### ##???????????## #?## #?# ##?????????????? | | ##?###?????????????##???#@ ##?# ########??????? | | ??????????????########### ##?# #??????? | | ????????????## ## # # #?# ##### #??????? | | ????????#### ###% #?# #????# #??????? | | #?????????# # ## ##?## #????# #??????? | | ??????????##!###### # ####?# #????# #??????? | | ####???#### ##????#### #""###" ###??# #??????? | | # ##?## & &#????????## ##"" """ ####!#??????? | | ! ### #####?????????# ##"" #### ## * #??????? | | &% # #?????????### " ""##### ########??????? | | & ####?????????# "" "# # ##????????????? | | # #?????????##### " " #????????????? | | #####????????## ### " #"# # #????????????? | | #??????????### "" ####### #????????????? | | ##??????????# #?????### #????????????? | | ###?????????########" "" #????###????????????? | | #????????????????#####"" #???????????????????? | | ##????????????????????# ##???????????????????? | | #?????????????????????##????????????????????? | | ##???????????????????????????????????????????? | | #????????????????????????????????????????????? | | #????????????????????????????????????????????? | | #????????????????????????????????????????????? | | #????????????????????????????????????????????? | | #####????????????????????????????????????????? | +----------------------------------------------------+ Best States ------------- Heat Dissipation 25 Energy Generation 15 Energy Capacity 200 Matter Stores 300 Matter Capacity 300 Sight Range 16 Terrain Scan Density 10 Armor Coverage 100 Resistance: KI 10 Evasion (%) 40 Recoil Reduction 2 Item Schematics ----------------- None Robot Schematics ------------------ None Fabricated ------------ Nothing Repaired ---------- Nothing Studied --------- None Alien Tech Used ----------------- None Achievements -------------- None Challenges ------------ None Game ------ Seed SupersonicEnergyRouter Manual? 0 Play Time 00:19:25 Cumulative 307.6 hours Start 2026.04.06 @ 16:41:37 End 2026.04.06 @ 18:53:33 Sessions 5 Manual Loads 0 Difficulty Rogue Special Mode None Game No. 159 Rogue 156 Adventurer 3 Explorer 0 Win Type - Total 8 Types 7/0/1/0/0/0/0/0/0/0 Lore% 77 Gallery% 70 Achievement% 48 Wizard Run 0 Options --------- Layout 1 ASCII 0 Keyboard 1 Movement Vi Keybinds 0 Fullscreen 1 Font 28/SmallcapsGlow Map View 50x43 Zoom Use 0% Tactical HUD 1 Map Filters NONE Filters NONE Steam X RUN: 8a74e243-9b5c-4b81-8d77-fc9bd3993b29